fUSD/lending_fUSD_20260331
["ID","MTS","AMOUNT","RATE_DAILY","PERIOD"]
[419167241,1774991348145,-150.0,0.000114,2]
[419167242,1774991348167,-150.0,0.000114,2]
[419167243,1774991348198,-180.0,0.00011466,2]
[419167244,1774991348220,-2351.0,0.00011532,2]
[419167245,1774991348241,-286.23,0.00011582,2]
[419167246,1774991348262,-150.0,0.000116,2]
[419167247,1774991348283,-150.0,0.000116,2]
[419167248,1774991348303,-150.0,0.000116,2]
[419167249,1774991348325,-150.0,0.000116,2]
[419167250,1774991348346,-150.0,0.000116,2]
[419167251,1774991348367,-150.0,0.000116,2]
[419167252,1774991348389,-643.85,0.00011665,2]
[419167253,1774991348410,-150.0,0.000117,2]
[419167254,1774991348474,250.0,9.531e-05,2]
[419167255,1774991381749,230.53534709,0.00011707,2]
[419167256,1774991387712,230.53534708,0.00011757,2]
[419167258,1774991409473,37348.16784154,9.5e-05,3]
[419167259,1774991409498,33223.13636855,9.5e-05,3]
[419167271,1774991432007,-429524.56455779,9.5e-05,3]
[419167272,1774991432016,-4519.53078424,0.0001,2]
[419167273,1774991432026,-1200.0,0.00011806,2]
[419167274,1774991432035,-708.33507109,0.00011807,2]
[419167275,1774991432045,-15446.77142417,0.00011807,2]
[419167276,1774991432054,-227.02109222,0.00011807,2]
[419167277,1774991432063,-235.21289762,0.00011807,2]
[419167278,1774991432073,-556.49654722,0.00011807,2]
[419167279,1774991432084,-3151.35672349,0.00011807,2]
[419167280,1774991432094,-230.53534708,0.00011807,2]
[419167281,1774991432103,-1793.9473,0.00011807,2]
[419167282,1774991432112,-244.53365806,0.00011853,2]
[419167283,1774991432122,-180.0,0.00011853,3]
[419167284,1774991432131,-159.0,0.00011853,3]
[419167285,1774991432140,-243.96468057,0.00011897,2]
[419167286,1774991432150,-500.0,0.00011906,2]
[419167287,1774991432159,-500.0,0.00011906,2]
[419167288,1774991432168,-500.0,0.00011906,2]
[419167289,1774991432177,-500.0,0.00011906,2]
[419167290,1774991432186,-500.0,0.00011906,2]
[419167291,1774991432196,-500.0,0.00011906,2]
[419167292,1774991432206,-500.0,0.00011906,2]
[419167293,1774991432215,-500.0,0.00011906,2]
[419167294,1774991432224,-500.0,0.00011906,2]
[419167295,1774991432234,-500.0,0.00011906,2]
[419167296,1774991432243,-500.0,0.00011906,2]
[419167297,1774991432253,-500.0,0.00011906,2]
[419167298,1774991432262,-500.0,0.00011906,2]
[419167299,1774991432271,-500.0,0.00011906,2]
[419167300,1774991432280,-500.0,0.00011906,2]
[419167301,1774991432289,-500.0,0.00011906,2]
[419167302,1774991432298,-500.0,0.00011906,2]
[419167303,1774991432307,-500.0,0.00011906,2]
[419167304,1774991432316,-500.0,0.00011906,2]
[419167305,1774991432325,-500.0,0.00011906,2]
[419167306,1774991432334,-308.34094203,0.00011906,2]
[419167307,1774991432343,-500.0,0.00011906,2]
[419167308,1774991432354,-500.0,0.00011906,2]
[419167309,1774991432363,-500.0,0.00011906,2]
[419167310,1774991432372,-500.0,0.00011906,2]
[419167311,1774991432382,-500.0,0.00011906,2]
[419167312,1774991432391,-500.0,0.00011906,2]
[419167313,1774991432401,-500.0,0.00011906,2]
[419167314,1774991432411,-170.55573387,0.00011906,2]
[419167315,1774991432421,-186317.73472126,0.00011907,2]
[419167316,1774991433763,-228110.50888996,0.00011907,2]
[419167317,1774991433778,-348957.01750826,0.00011907,2]
[419167318,1774991433791,-1254.41808677,0.00011907,2]
[419167319,1774991433804,-1205.91602568,0.00011907,2]
[419167320,1774991433817,-15194.15285195,0.00011907,2]
[419167321,1774991433828,-781.51955281,0.00011907,2]
[419167322,1774991433857,-1037.75340511,0.00011907,2]
[419167326,1774991437656,-500.0,9.499e-05,2]
[419167327,1774991437667,-145.36690144,9.499e-05,2]
[419167328,1774991437679,-163.77028105,9.499e-05,2]
[419167329,1774991437688,-500.0,9.499e-05,2]
[419167330,1774991437698,-500.0,9.499e-05,2]
[419167331,1774991437708,-194.45940793,9.499e-05,2]
[419167332,1774991437720,-271.39743845,9.499e-05,2]
[419167333,1774991437732,-152.73832302,9.499e-05,2]
[419167334,1774991437741,-376.6342392,9.499e-05,2]
[419167335,1774991437751,-500.0,9.499e-05,2]
[419167336,1774991437765,-500.0,9.499e-05,2]
[419167337,1774991437775,-13090.05308056,0.00011907,2]
[419167338,1774991437803,-1037.77,0.00011907,2]
[419167339,1774991437815,-2275.98803234,0.00011907,2]
[419167340,1774991437868,-618.6790189,0.00011907,2]
[419167341,1774991437880,-2041.44350403,0.00011907,2]
[419167356,1774991439812,-16339.72992309,0.00011907,2]
[419167357,1774991439865,-2048.23499573,0.00011907,2]
[419167358,1774991440392,-121487.54510866,0.00011907,2]
[419167364,1774991442810,-7589.21147966,0.00011907,2]
[419167365,1774991442821,-4843.23541158,0.00011907,2]
[419167366,1774991443017,-335.04991627,0.00011907,2]
[419167375,1774991445998,-864.88,0.0001152,2]
[419167376,1774991446009,-45711.93090496,0.00011907,2]
[419167377,1774991446109,-4412.6058,0.00011907,2]
[419167385,1774991805136,5000.01,8.542e-05,2]
[419167386,1774991811167,-361.25240115,8.542e-05,2]
[419167387,1774991814173,-5000.01,8.542e-05,2]
[419167388,1774991817329,-421.08975661,8.542e-05,2]
[419167389,1774991817355,-1103.7299612,8.542e-05,2]
[419167390,1774991817381,-198.54549055,8.542e-05,2]
[419167391,1774991817438,-1553.27958328,8.542e-05,2]
[419167393,1774992352436,262.15,4.862e-05,2]
[419167394,1774992352843,262.15,5.118e-05,2]
[419167395,1774992353043,262.15,5.374e-05,2]
[419167396,1774992353258,262.15,5.63e-05,2]
[419167397,1774992353657,262.15,5.886e-05,2]
[419167398,1774992353881,262.15,6.142e-05,2]
[419167399,1774992354093,262.15,6.398e-05,2]
[419167400,1774992354293,262.15,6.654e-05,2]
[419167401,1774992354517,262.15,6.91e-05,2]
[419167402,1774992354687,262.15,7.165e-05,2]
[419167403,1774992354883,262.15,7.421e-05,2]
[419167404,1774992355084,262.15,7.677e-05,2]
[419167405,1774992355301,262.15,7.933e-05,2]
[419167406,1774992355509,262.15,8.189e-05,2]
[419167407,1774992355782,262.15,8.445e-05,2]
[419167408,1774992385877,155.33,7.703e-05,2]
[419167409,1774992426181,1000.0,7.3e-05,2]
[419167410,1774992434476,378.31,7.393e-05,2]
[419167411,1774992435000,392.19,7.669e-05,2]
[419167412,1774992435496,660.0,7.878e-05,2]
[419167413,1774992436009,670.0,8.042e-05,2]
[419167414,1774992436530,890.0,8.217e-05,2]
[419167415,1774992437054,720.0,8.463e-05,2]
[419167416,1774992439133,-925.15,8.58e-05,2]
[419167417,1774992439156,-262.15,8.701e-05,2]
[419167418,1774992439180,-3225.59253488,8.829e-05,2]
[419167419,1774992501857,1030.0,8.005e-05,2]
[419167420,1774992502403,1020.0,8.287e-05,2]
[419167421,1774992502899,768.22,8.475e-05,2]
[419167422,1774992554117,-976.98,8.729e-05,2]
[419167423,1774992554138,-1774.40746512,8.829e-05,2]
[419167424,1774992554160,-620.0,8.834e-05,2]
[419167425,1774992554183,-262.15,8.957e-05,2]
[419167426,1774992554205,-680.0,9.07e-05,2]
[419167427,1774992554704,-5000.0,9.095e-05,2]
[419167428,1774992554726,-262.15,9.213e-05,2]
[419167429,1774992554746,-150.0,9.295e-05,2]
[419167430,1774992554768,-300.0,9.306e-05,2]
[419167431,1774992554787,-1200.0,9.307e-05,2]
[419167432,1774992554808,-286.40699032,9.308e-05,2]
[419167433,1774992554829,-1200.0,9.32e-05,2]
[419167434,1774992554852,-680.0,9.342e-05,2]
[419167435,1774992554872,-150.0,9.397e-05,2]
[419167436,1774992554892,-2520.14,9.426e-05,2]
[419167437,1774992554912,-300.0,9.464e-05,2]
[419167438,1774992554933,-300.0,9.464e-05,2]
[419167439,1774992554954,-262.15,9.469e-05,2]
[419167440,1774992554973,-1231.23,9.529e-05,2]
[419167441,1774992554995,-300.0,9.57e-05,2]
[419167442,1774992555016,-2960.71639623,9.571e-05,2]
[419167443,1774992555040,-5000.0,9.571e-05,2]
[419167444,1774992555061,-193.0,9.602e-05,2]
[419167445,1774992555081,-1500.0,9.61e-05,2]
[419167446,1774992555103,-517.99,9.617e-05,2]
[419167447,1774992555123,-155.33,9.629e-05,2]
[419167448,1774992555148,-262.15,9.725e-05,2]
[419167449,1774992555168,-150.0,9.907e-05,2]
[419167450,1774992555189,-150.0,9.908e-05,2]
[419167451,1774992555209,-500.0,9.918e-05,2]
[419167452,1774992555232,-163.72,9.95e-05,2]
[419167453,1774992555252,-500.0,9.95e-05,3]
[419167454,1774992555271,-202.71878768,0.0001,2]
[419167455,1774992555292,-202.71878768,0.0001,2]
[419167456,1774992555315,-414.64546776,0.0001,2]
[419167457,1774992555334,-163.0,0.0001,2]
[419167458,1774992555355,-163.0,0.0001,2]
[419167459,1774992555375,-163.67838651,0.0001,2]
[419167460,1774992555396,-1108.70885131,0.00010086,2]
[419167461,1774992559120,-493.02114869,0.00010086,2]
[419167462,1774992559141,-1527.86,0.00010191,2]
[419167463,1774992559161,-150.0,0.00010218,2]
[419167464,1774992559181,-451.42320288,0.00010219,2]
[419167465,1774992559201,-500.0,0.00010219,2]
[419167466,1774992559222,-200.0,0.00010219,2]
[419167467,1774992559245,-151.0,0.00010219,2]
[419167468,1774992559266,-151.0,0.00010219,2]
[419167469,1774992559287,-151.0,0.00010219,2]
[419167470,1774992559308,-151.0,0.00010219,2]
[419167471,1774992559329,-151.0,0.00010219,2]
[419167472,1774992559349,-151.0,0.00010219,2]
[419167473,1774992559370,-151.0,0.00010219,2]
[419167474,1774992559390,-151.0,0.00010219,2]
[419167475,1774992559410,-82.66873316,0.00010219,2]
[419167476,1774992566565,-219.47720843,9.828e-05,2]
[419167477,1774992566587,-68.33126684,0.00010219,2]
[419167478,1774992566608,-151.0,0.00010219,2]
[419167479,1774992566630,-151.0,0.00010219,2]
[419167480,1774992566651,-151.0,0.00010219,2]
[419167481,1774992566672,-151.0,0.00010219,2]
[419167482,1774992566692,-896.62,0.00010219,2]
[419167483,1774992566712,-5000.0,0.00010225,2]
[419167484,1774992566733,-250.0,0.00010225,2]
[419167485,1774992566756,-420.0,0.00010237,2]
[419167486,1774992566776,-317.0360806,0.00010237,2]
[419167487,1774992566798,-1680.0,0.00010251,2]
[419167488,1774992566821,-286.40699031,0.00010358,2]
[419167489,1774992566842,-228.99,0.00010411,2]
[419167490,1774992566864,-385.46,0.00010466,2]
[419167491,1774992566884,-896.62,0.00010493,2]
[419167492,1774992566904,-150.0,0.000105,2]
[419167493,1774992566927,-420.0,0.00010527,2]
[419167494,1774992566948,-150.0,0.00010529,2]
[419167495,1774992566971,-150.0,0.00010529,2]
[419167496,1774992566993,-150.0,0.00010529,2]
[419167497,1774992567015,-150.0,0.00010529,2]
[419167498,1774992567038,-150.0,0.00010529,2]
[419167499,1774992567058,-223.74092399,0.00010529,2]
[419167500,1774992567078,-150.0,0.00010529,2]
[419167501,1774992567097,-150.0,0.00010529,2]
[419167502,1774992567116,-150.0,0.00010529,2]
[419167503,1774992567136,-192.04536749,0.00010529,2]
[419167504,1774992567156,-150.0,0.00010529,2]
[419167505,1774992567175,-1717.75,0.00010552,2]
[419167506,1774992567196,-937.78,0.0001076,2]
[419167507,1774992567217,-200.0,0.00010767,2]
[419167508,1774992567236,-896.62,0.00010767,2]
[419167509,1774992567256,-500.0,0.00010959,2]
[419167510,1774992567276,-896.62,0.00011041,2]
[419167511,1774992567295,-150.0,0.00011114,2]
[419167512,1774992567315,-167.8,0.00011171,2]
[419167513,1774992567334,-163.72,0.00011194,2]
[419167514,1774992567354,-120.00718815,0.0001123,2]
[419167515,1774992567482,364.18,8.009e-05,2]
[419167516,1774992567606,412.27,8.128e-05,2]
[419167519,1774992569494,900.0,8.461e-05,2]
[419167520,1774992573073,-783.1145798,8.688e-05,2]
[419167521,1774992607800,180.0,8.688e-05,3]
[419167527,1774992631854,-156.8854202,8.688e-05,2]
[419167528,1774992631865,-250.0,8.771e-05,2]
[419167529,1774992631875,-154.4745798,8.854e-05,2]
[419167530,1774992632063,-254.8554202,8.854e-05,2]
[419167531,1774992632074,-445.1945798,9.036e-05,2]
[419167532,1774992632086,-144.8054202,9.036e-05,2]
[419167533,1774992632097,-250.0,9.068e-05,2]
[419167534,1774992632107,-500.0,9.245e-05,2]
[419167535,1774992632118,-980.0,9.518e-05,2]
[419167536,1774992632128,-5000.0,9.556e-05,2]
[419167537,1774992632139,-250.0,9.556e-05,2]
[419167538,1774992632149,-2000.0,0.00010769,2]
[419167539,1774992632160,-155.42,0.00011233,2]
[419167540,1774992632170,-896.62,0.00011315,2]
[419167541,1774992632181,-1200.0,0.00011499,2]
[419167542,1774992632191,-150.0,0.000115,2]
[419167543,1774992632201,-300.0,0.00011507,2]
[419167544,1774992632212,-3050.50500285,0.00011508,2]
[419167545,1774992632222,-155.33,0.00011555,2]
[419167546,1774992632232,-896.62,0.00011588,2]
[419167547,1774992632243,-5271.792,0.00011605,2]
[419167548,1774992632253,-2500.0,0.00011605,2]
[419167549,1774992632263,-13902.09428178,0.00011607,2]
[419167550,1774992632274,-167.8,0.00011632,2]
[419167552,1774992632284,-3337.06794363,0.00011673,2]
[419167554,1774992632294,-280.09273844,0.00011673,2]
[419167556,1774992632304,-278.24562509,0.00011695,2]
[419167557,1774992632314,-236.44133559,0.00011699,2]
[419167558,1774992632325,-180.29517447,0.00011699,2]
[419167559,1774992632335,-234.08601707,0.00011699,2]
[419167561,1774992632345,-169.09058319,0.00011699,2]
[419167562,1774992632355,-150.0,0.00011699,2]
[419167563,1774992632365,-185.99177959,0.00011699,2]
[419167564,1774992632375,-500.0,0.00011699,2]
[419167565,1774992632386,-500.0,0.00011704,2]
[419167566,1774992632396,-500.0,0.00011704,2]
[419167568,1774992632406,-500.0,0.00011704,2]
[419167570,1774992632417,-500.0,0.00011704,2]
[419167572,1774992632427,-500.0,0.00011704,2]
[419167574,1774992632437,-500.0,0.00011704,2]
[419167576,1774992632447,-500.0,0.00011704,2]
[419167578,1774992632458,-500.0,0.00011704,2]
[419167580,1774992632468,-500.0,0.00011704,2]
[419167582,1774992632478,-500.0,0.00011704,2]
[419167585,1774992632494,-500.0,0.00011704,2]
[419167587,1774992632505,-500.0,0.00011704,2]
[419167589,1774992632516,-500.0,0.00011704,2]
[419167591,1774992632526,-500.0,0.00011704,2]
[419167592,1774992632536,-500.0,0.00011704,2]
[419167593,1774992632546,-500.0,0.00011704,2]
[419167594,1774992632558,-500.0,0.00011704,2]
[419167595,1774992632569,-500.0,0.00011704,2]
[419167596,1774992632580,-500.0,0.00011704,2]
[419167597,1774992632591,-500.0,0.00011704,2]
[419167598,1774992632607,-500.0,0.00011704,2]
[419167599,1774992632618,-500.0,0.00011704,2]
[419167600,1774992632628,-363.17935414,0.00011704,2]
[419167601,1774992632638,-500.0,0.00011704,2]
[419167602,1774992632649,-500.0,0.00011704,2]
[419167603,1774992632659,-500.0,0.00011704,2]
[419167604,1774992632670,-500.0,0.00011704,2]
[419167605,1774992632681,-500.0,0.00011704,2]
[419167606,1774992632692,-500.0,0.00011704,2]
[419167607,1774992632703,-500.0,0.00011704,2]
[419167608,1774992632714,-500.0,0.00011704,2]
[419167609,1774992632725,-500.0,0.00011704,2]
[419167610,1774992632736,-500.0,0.00011704,2]
[419167611,1774992632747,-284.82330066,0.00011704,2]
[419167612,1774992632758,-500.0,0.00011704,2]
[419167613,1774992632769,-500.0,0.00011704,2]
[419167614,1774992632780,-500.0,0.00011704,2]
[419167615,1774992632792,-500.0,0.00011704,2]
[419167616,1774992632803,-500.0,0.00011704,2]
[419167617,1774992632815,-500.0,0.00011704,2]
[419167618,1774992632826,-500.0,0.00011704,2]
[419167619,1774992632837,-500.0,0.00011704,2]
[419167620,1774992632849,-500.0,0.00011704,2]
[419167621,1774992632860,-500.0,0.00011704,2]
[419167622,1774992632871,-500.0,0.00011704,2]
[419167623,1774992632881,-500.0,0.00011704,2]
[419167624,1774992632892,-500.0,0.00011704,2]
[419167625,1774992632902,-500.0,0.00011704,2]
[419167626,1774992632914,-500.0,0.00011704,2]
[419167627,1774992632925,-500.0,0.00011704,2]
[419167628,1774992632937,-500.0,0.00011704,2]
[419167629,1774992632947,-500.0,0.00011704,2]
[419167630,1774992632958,-500.0,0.00011704,2]
[419167631,1774992632969,-336.31793541,0.00011704,2]
[419167632,1774992632979,-500.0,0.00011704,2]
[419167633,1774992632990,-500.0,0.00011704,2]
[419167634,1774992633001,-500.0,0.00011704,2]
[419167635,1774992633011,-500.0,0.00011704,2]
[419167636,1774992633022,-500.0,0.00011704,2]
[419167637,1774992633036,-500.0,0.00011704,2]
[419167638,1774992633047,-500.0,0.00011704,2]
[419167639,1774992633059,-500.0,0.00011704,2]
[419167640,1774992633070,-500.0,0.00011704,2]
[419167641,1774992633081,-500.0,0.00011704,2]
[419167642,1774992633094,-500.0,0.00011704,2]
[419167643,1774992633105,-500.0,0.00011704,2]
[419167644,1774992633116,-500.0,0.00011704,2]
[419167645,1774992633126,-219.16272543,0.00011704,2]
[419167646,1774992633138,-500.0,0.00011704,2]
[419167647,1774992633148,-500.0,0.00011704,2]
[419167648,1774992633159,-224.01748454,0.00011704,2]
[419167649,1774992633172,-348.28195184,0.00011704,2]
[419167650,1774992633182,-236.65283499,0.00011704,2]
[419167651,1774992633193,-201.96685943,0.00011704,2]
[419167652,1774992633204,-500.0,0.00011704,2]
[419167653,1774992633215,-500.0,0.00011704,2]
[419167654,1774992633226,-500.0,0.00011704,2]
[419167655,1774992633236,-622.54793917,0.00011704,2]
[419167656,1774992633248,-120177.3181066,0.00011705,2]
[419167657,1774992633264,-2983.27052775,0.00011705,2]
[419167658,1774992633277,-6110.80466794,0.00011705,2]
[419167659,1774992633601,611.61,8.341e-05,2]
[419167661,1774992637982,-828.53,9.261e-05,2]
[419167662,1774992637993,-781.36,0.0001,2]
[419167663,1774992638003,-1603.0686332,0.00011705,2]
[419167693,1774992639626,-6995.47165002,0.00011705,2]
[419167694,1774992639638,-210857.32834998,0.00011705,2]
[419167695,1774992639672,-604.90159684,0.00011705,2]
[419167696,1774992639683,-2064.64295661,0.00011705,2]
[419167697,1774992639694,-1120.93306317,0.00011705,2]
[419167698,1774992639705,-1376.14751652,0.00011705,2]
[419167699,1774992639716,-2308.197707,0.00011705,2]
[419167700,1774992640208,-674.18499106,0.00011705,2]
[419167701,1774992640219,-956.79071888,0.00011705,2]
[419167704,1774992640988,-490.32139277,0.00011705,2]
[419167705,1774992641004,-1346.54836628,0.00011705,2]
[419167709,1774992643122,-1054.0,0.00011705,2]
[419167863,1774992645837,-2174.67929847,0.00011705,2]
[419167864,1774992646105,-663.00423262,0.00011705,2]
[419167891,1774993160744,166.0,0.00016101,120]
[419167892,1774993633599,-401.08,8.885e-05,2]
[419167893,1774993633621,-17.75741186,9.41e-05,2]
[419167895,1774993654083,-375.88258814,9.41e-05,2]
[419167896,1774993654103,-81.3364621,9.572e-05,2]
[419167898,1774993746112,-1091.67,8.644e-05,2]
[419167899,1774993746135,-540.0,8.855e-05,2]
[419167900,1774993746156,-405.1,9.07e-05,2]
[419167901,1774993746179,-1000.0,9.181e-05,2]
[419167902,1774993746200,-3701.50512858,9.508e-05,2]
[419167903,1774993746222,-1000.0,9.509e-05,2]
[419167904,1774993746243,-8952.432981,9.624e-05,2]
[419167905,1774993746265,-1230.0,9.673e-05,2]
[419167906,1774993746287,-600.0,9.676e-05,2]
[419167907,1774993746310,-222.80344828,9.783e-05,2]
[419167908,1774993746330,-180.74112032,9.783e-05,2]
[419167909,1774993746351,-300.0,9.84e-05,2]
[419167910,1774993746372,-700.0,9.881e-05,2]
[419167911,1774993746392,-1200.0,9.89e-05,2]
[419167912,1774993746414,-1200.0,9.891e-05,2]
[419167913,1774993746434,-300.0,9.891e-05,2]
[419167914,1774993746454,-200.0,9.906e-05,2]
[419167915,1774993746475,-265.37322654,0.00010005,2]
[419167916,1774993746497,-1075.19,0.00010124,2]
[419167917,1774993746517,-150.0,0.00010252,2]
[419167918,1774993746539,-500.0,0.00010253,2]
[419167919,1774993746562,-151.0,0.00010253,2]
[419167920,1774993746583,-151.0,0.00010253,2]
[419167921,1774993746604,-151.0,0.00010253,2]
[419167922,1774993746625,-151.0,0.00010253,2]
[419167923,1774993746646,-151.0,0.00010253,2]
[419167924,1774993746666,-200.0,0.00010253,2]
[419167925,1774993746687,-151.0,0.00010253,2]
[419167926,1774993746707,-151.0,0.00010253,2]
[419167927,1774993746728,-151.0,0.00010253,2]
[419167928,1774993746748,-544.05155812,0.00010253,2]
[419167929,1774993746769,-151.0,0.00010253,2]
[419167930,1774993746793,-151.0,0.00010253,2]
[419167931,1774993746814,-1199.20597015,0.00010253,2]
[419167932,1774993746834,-444.0,0.00010261,2]
[419167933,1774993746854,-388.0,0.00010261,2]
[419167934,1774993746875,-1852.42,0.00010261,2]
[419167935,1774993746896,-700.0,0.00010284,2]
[419167936,1774993746917,-155.0,0.00010311,2]
[419167937,1774993746938,-222.0,0.00010311,2]
[419167938,1774993746958,-555.0,0.00010311,2]
[419167939,1774993746978,-1157.90547016,0.00010351,2]
[419167940,1774993746999,-165.56177113,0.00010351,2]
[419167941,1774993747020,-150.0,0.000104,2]
[419167942,1774993747043,-767.55,0.00010474,2]
[419167943,1774993747065,-210.94,0.000105,2]
[419167944,1774993747086,-222.80344828,0.00010509,2]
[419167945,1774993747108,-500.0,0.00010822,2]
[419167946,1774993747130,-251.0,0.00010824,2]
[419167947,1774993747151,-1200.0,0.00010879,2]
[419167948,1774993747172,-1680.0,0.0001088,2]
[419167949,1774993747192,-150.0,0.00010959,2]
[419167950,1774993747213,-183.19,0.00011115,2]
[419167951,1774993747235,-941.18,0.00011184,2]
[419167952,1774993747256,-3574.0,0.000113,3]
[419167953,1774993747277,-222.80344828,0.00011334,2]
[419167954,1774993747298,-2594.722,0.000115,2]
[419167955,1774993747319,-181.99765005,0.000115,2]
[419167956,1774993747339,-5534.0,0.000115,5]
[419167957,1774993747359,-500.0,0.00011504,2]
[419167958,1774993747380,-627.80379871,0.00011504,2]
[419167959,1774993747402,-500.0,0.00011504,2]
[419167960,1774993747431,-500.0,0.00011504,2]
[419167961,1774993747458,-500.0,0.00011504,2]
[419167962,1774993747483,-500.0,0.00011504,2]
[419167963,1774993747508,-500.0,0.00011504,2]
[419167964,1774993747535,-500.0,0.00011504,2]
[419167965,1774993747563,-500.0,0.00011504,2]
[419167966,1774993747587,-383.63179355,0.00011504,2]
[419167967,1774993747607,-500.0,0.00011504,2]
[419167968,1774993747628,-354.4204141,0.00011504,2]
[419167969,1774993747648,-500.0,0.00011504,2]
[419167970,1774993747670,-186.72849228,0.00011505,2]
[419167971,1774993747693,-103371.5868951,0.00011505,2]
[419167972,1774993751181,-168.6635379,8.749e-05,2]
[419167973,1774993751202,-185.74780036,9.508e-05,2]
[419167974,1774993752108,1100.0,8.216e-05,2]
[419167975,1774993764142,-840.05,8.812e-05,2]
[419167976,1774993764164,-64.25219964,9.508e-05,2]
[419167977,1774993764186,-1212.87,9.646e-05,2]
[419167978,1774993811321,181.0,9.646e-05,3]
[419167990,1774993832247,-3003.36114924,0.00011473,2]
[419167991,1774993832256,-12611.16844927,0.00011473,2]
[419167992,1774993832265,-2407.91453714,0.00011473,2]
[419167993,1774993832275,-1200.0,0.00011504,2]
[419167994,1774993832284,-54335.3693772,0.00011505,2]
[419167995,1774993834278,5792.22737392,0.00010253,2]
[419168130,1774993840818,-1357.99078211,0.00010253,2]
[419168136,1774993843790,-3632.14400173,0.00010253,2]
[419168137,1774993843800,-1103.7299612,0.00010253,2]
[419168138,1774993843809,-1751.82507383,0.00010253,2]
[419168139,1774993843819,-957189.5265277,0.00011505,2]
[419168140,1774993843828,-500.0,0.00011573,2]
[419168141,1774993843838,-500.0,0.00011573,2]
[419168142,1774993843847,-500.0,0.00011573,2]
[419168143,1774993843857,-500.0,0.00011573,2]
[419168144,1774993843867,-500.0,0.00011573,2]
[419168145,1774993843877,-164.32847094,0.00011573,2]
[419168146,1774993843886,-334.85327011,0.00011573,2]
[419168147,1774993843895,-500.0,0.00011573,2]
[419168148,1774993843905,-500.0,0.00011573,2]
[419168149,1774993843914,-500.0,0.00011573,2]
[419168150,1774993843924,-500.0,0.00011573,2]
[419168151,1774993843933,-500.0,0.00011573,2]
[419168152,1774993843942,-500.0,0.00011573,2]
[419168154,1774993843952,-500.36803591,0.00011573,2]
[419168156,1774993843962,-500.0,0.00011573,2]
[419168157,1774993843972,-153.32480962,0.00011573,2]
[419168159,1774993843982,-185.49708339,0.00011595,2]
[419168160,1774993843991,-150.0,0.000116,2]
[419168161,1774993844003,-205681.25350306,0.00011605,2]
[419168204,1774994838159,-1000.0,0.0001,2]
[419168205,1774994838181,-155.02453665,0.00010262,2]
[419168206,1774994838202,-151.78,0.00010524,2]
[419168207,1774994838231,-193.87777706,0.00010635,2]
[419168208,1774994838252,-224.68,0.00010689,3]
[419168209,1774994838274,-818.98,0.00010701,2]
[419168210,1774994838296,-480.4956475,0.00010735,2]
[419168213,1774994888029,5000.01,7.945e-05,2]
[419168214,1774994888051,343.51472,7.945e-05,2]
[419168220,1774994922743,328.1,7.183e-05,2]
[419168221,1774994923273,711.98,7.925e-05,2]
[419168222,1774994947454,-832.56,8.629e-05,2]
[419168223,1774994947476,-1403.94,9.387e-05,2]
[419168224,1774994970095,-305.38802077,0.00010344,2]
[419168225,1774994974095,-711.46197923,0.00010344,2]
[419168226,1774994974117,-2784.7147853,0.00010719,2]
[419168227,1774994974138,-2091.7743525,0.00010735,2]
[419168228,1774994974159,-1200.0,0.00010795,2]
[419168229,1774994974180,-409.0,0.00010795,2]
[419168230,1774994974203,-1110.84,0.00010796,2]
[419168231,1774994974224,-500.0,0.00010796,2]
[419168232,1774994974245,-500.0,0.00010796,2]